fUST/lending_fUST_20251219
["ID","MTS","AMOUNT","RATE_DAILY","PERIOD"]
[399169041,1766131813700,-331.28,0.00039616,10]
[399169042,1766131813829,-500.0,0.00039625,120]
[399169043,1766131813859,-500.0,0.00039625,120]
[399169044,1766131813885,-500.0,0.00039625,120]
[399169045,1766131813907,-500.0,0.00039625,120]
[399169046,1766131813930,-362.84,0.00039625,120]
[399169047,1766131813955,-339.98,0.00039625,120]
[399169048,1766131813985,-500.0,0.00039625,120]
[399169049,1766131814012,-500.0,0.00039625,120]
[399169050,1766131814037,-500.0,0.00039625,120]
[399169051,1766131814061,-264.12,0.00039625,120]
[399169052,1766131814088,-890000.0,0.00039626,2]
[399169053,1766131814113,-517.41,0.000397,30]
[399169054,1766131814136,-1099.59,0.000397,14]
[399169055,1766131814161,-1782.42,0.000397,2]
[399169056,1766131814188,-500.0,0.00039726,15]
[399169057,1766131814214,-500.0,0.00039726,15]
[399169058,1766131814240,-500.0,0.00039726,15]
[399169060,1766131814266,-500.0,0.00039726,15]
[399169061,1766131814291,-500.0,0.00039726,15]
[399169062,1766131814318,-500.0,0.00039726,15]
[399169063,1766131814344,-500.0,0.00039726,15]
[399169064,1766131814371,-500.0,0.00039726,15]
[399169065,1766131814397,-500.0,0.00039726,15]
[399169066,1766131814425,-500.0,0.00039726,15]
[399169067,1766131814450,-500.0,0.00039726,15]
[399169068,1766131814478,-500.0,0.00039726,15]
[399169069,1766131814504,-500.0,0.00039726,15]
[399169070,1766131814529,-500.0,0.00039726,15]
[399169071,1766131814556,-500.0,0.00039726,15]
[399169072,1766131814581,-500.0,0.00039726,15]
[399169073,1766131814607,-500.0,0.00039726,15]
[399169074,1766131814631,-500.0,0.00039726,15]
[399169075,1766131814656,-500.0,0.00039726,15]
[399169076,1766131814681,-500.0,0.00039726,15]
[399169077,1766131814706,-500.0,0.00039726,15]
[399169078,1766131814731,-500.0,0.00039726,15]
[399169079,1766131814757,-500.0,0.00039726,15]
[399169080,1766131814782,-500.0,0.00039726,15]
[399169081,1766131814808,-500.0,0.00039726,15]
[399169082,1766131814833,-500.0,0.00039726,15]
[399169083,1766131814859,-500.0,0.00039726,15]
[399169084,1766131814884,-500.0,0.00039726,15]
[399169085,1766131814910,-500.0,0.00039726,15]
[399169086,1766131814936,-500.0,0.00039726,15]
[399169087,1766131814964,-350.84644343,0.00039726,15]
[399169088,1766131814989,-500.0,0.00039726,15]
[399169089,1766131815015,-500.0,0.00039726,15]
[399169090,1766131815044,-500.0,0.00039726,15]
[399169091,1766131815069,-500.0,0.00039726,15]
[399169092,1766131815096,-500.0,0.00039726,15]
[399169093,1766131815123,-500.0,0.00039726,15]
[399169094,1766131815150,-500.0,0.00039726,15]
[399169095,1766131815176,-500.0,0.00039726,15]
[399169096,1766131815203,-500.0,0.00039726,15]
[399169097,1766131815228,-500.0,0.00039726,15]
[399169098,1766131815255,-500.0,0.00039726,15]
[399169099,1766131815280,-500.0,0.00039726,15]
[399169100,1766131815305,-500.0,0.00039726,15]
[399169101,1766131815331,-500.0,0.00039726,15]
[399169102,1766131815357,-500.0,0.00039726,15]
[399169103,1766131815384,-500.0,0.00039726,15]
[399169104,1766131815410,-500.0,0.00039726,15]
[399169105,1766131815436,-285.08464435,0.00039726,15]
[399169106,1766131815462,-500.0,0.00039726,15]
[399169107,1766131815487,-500.0,0.00039726,15]
[399169108,1766131815516,-500.0,0.00039726,15]
[399169109,1766131815544,-500.0,0.00039726,15]
[399169110,1766131815579,-500.0,0.00039726,15]
[399169111,1766131815607,-500.0,0.00039726,15]
[399169112,1766131815635,-500.0,0.00039726,15]
[399169113,1766131815661,-500.0,0.00039726,15]
[399169114,1766131815689,-499.99999999,0.00039726,15]
[399169115,1766131815716,-500.0,0.00039726,15]
[399169116,1766131815743,-500.0,0.00039726,15]
[399169117,1766131815771,-500.0,0.00039726,15]
[399169118,1766131815798,-500.0,0.00039726,15]
[399169119,1766131815821,-155.3063869,0.00039969,2]
[399169120,1766131815850,-1000.0,0.00040716,60]
[399169121,1766131815877,-1000.0,0.00040716,60]
[399169122,1766131815919,-1000.0,0.00044787,60]
[399169123,1766131815946,-1000.0,0.00044787,60]
[399169124,1766131815976,-579.0,0.00044787,60]
[399169125,1766131815998,-1721.58,0.00045,30]
[399169126,1766131816026,-300.0,0.00046466,60]
[399169127,1766131816052,-300.0,0.0004811,90]
[399169128,1766131816076,-300.0,0.00049205,90]
[399169129,1766131816104,-1000.0,0.00049266,120]
[399169130,1766131816133,-1000.0,0.00049266,120]
[399169131,1766131816160,-1000.0,0.00049266,120]
[399169132,1766131816182,-1041.66666667,0.00049266,120]
[399169133,1766131816206,-500.0,0.00049315,120]
[399169134,1766131816230,-500.0,0.00049315,120]
[399169135,1766131816255,-500.0,0.00049315,120]
[399169136,1766131816278,-500.0,0.00049315,120]
[399169137,1766131816303,-500.0,0.00049315,120]
[399169138,1766131816326,-500.0,0.00049315,120]
[399169139,1766131816351,-487.14418452,0.00049315,120]
[399169140,1766131816375,-500.0,0.00049315,120]
[399169141,1766131816399,-500.0,0.00049315,120]
[399169142,1766131816422,-500.0,0.00049315,120]
[399169143,1766131816446,-500.0,0.00049315,120]
[399169144,1766131816470,-500.0,0.00049315,120]
[399169145,1766131816493,-500.0,0.00049315,120]
[399169146,1766131816518,-500.0,0.00049315,120]
[399169147,1766131816542,-500.0,0.00049315,120]
[399169148,1766131816566,-500.0,0.00049315,120]
[399169149,1766131816590,-500.0,0.00049315,120]
[399169150,1766131816614,-500.0,0.00049315,120]
[399169151,1766131816638,-500.0,0.00049315,120]
[399169152,1766131816662,-500.0,0.00049315,120]
[399169153,1766131816686,-500.0,0.00049315,120]
[399169154,1766131816710,-500.0,0.00049315,120]
[399169155,1766131816734,-500.0,0.00049315,120]
[399169156,1766131816759,-500.0,0.00049315,120]
[399169157,1766131816783,-500.0,0.00049315,120]
[399169158,1766131816807,-500.0,0.00049315,120]
[399169159,1766131816832,-500.0,0.00049315,120]
[399169160,1766131816858,-500.0,0.00049315,120]
[399169161,1766131816882,-200.0,0.00049315,120]
[399169162,1766131816904,-300.0,0.00051945,120]
[399169163,1766131816927,-300.0,0.00054411,120]
[399169164,1766131816950,-300.0,0.00054794,10]
[399169165,1766131816976,-500.0,0.00054794,120]
[399169166,1766131816999,-500.0,0.00054794,120]
[399169167,1766131817025,-790.02,0.00054794,120]
[399169168,1766131817049,-500.0,0.00054794,120]
[399169169,1766131817072,-500.0,0.00054794,120]
[399169170,1766131817095,-500.0,0.00054794,120]
[399169171,1766131817121,-500.0,0.00054794,120]
[399169172,1766131817145,-500.0,0.00054794,120]
[399169173,1766131817167,-500.0,0.00054794,120]
[399169175,1766131817190,-504.12701475,0.00054794,120]
[399169176,1766131817213,-500.0,0.00054794,120]
[399169177,1766131817236,-500.0,0.00054794,120]
[399169178,1766131817260,-500.0,0.00054794,120]
[399169179,1766131817287,-500.0,0.00054794,120]
[399169180,1766131817312,-502.72688629,0.00054794,120]
[399169181,1766131817338,-500.0,0.00054794,120]
[399169182,1766131817362,-500.0,0.00054794,120]
[399169183,1766131817386,-500.0,0.00054794,120]
[399169184,1766131817409,-500.0,0.00054794,120]
[399169185,1766131817433,-500.0,0.00054794,120]
[399169186,1766131817456,-500.0,0.00054794,120]
[399169187,1766131817478,-501.36635523,0.00054794,120]
[399169188,1766131817502,-500.0,0.00054794,120]
[399169189,1766131817526,-501.22285886,0.00054794,120]
[399169190,1766131817549,-501.57768902,0.00054794,30]
[399169191,1766131817574,-500.0,0.00054794,120]
[399169192,1766131817597,-500.0,0.00054794,120]
[399169193,1766131817620,-500.0,0.00054794,120]
[399169194,1766131817643,-503.03998293,0.00054794,120]
[399169195,1766131817665,-500.0,0.00054794,120]
[399169196,1766131817688,-500.41756334,0.00054794,12]
[399169197,1766131817711,-500.0,0.00054794,120]
[399169198,1766131817733,-500.75993926,0.00054794,120]
[399169199,1766131817757,-500.0,0.00054794,120]
[399169200,1766131817780,-500.0,0.00054794,120]
[399169201,1766131817803,-150.68034733,0.00054794,120]
[399169202,1766131817824,-500.0,0.00054794,120]
[399169203,1766131817847,-500.0,0.00054794,120]
[399169204,1766131817870,-1136.19,0.00054794,120]
[399169205,1766131817894,-500.0,0.00054794,120]
[399169206,1766131817918,-500.0,0.00054794,120]
[399169207,1766131817941,-1793.54,0.00054794,120]
[399169208,1766131817970,-500.0,0.00054794,120]
[399169209,1766131817994,-500.0,0.00054794,120]
[399169210,1766131818021,-500.0,0.00054794,120]
[399169211,1766131818046,-500.0,0.00054795,120]
[399169212,1766131818070,-1782.42,0.000548,2]
[399169213,1766131818094,-157.00000001,0.00055,120]
[399169214,1766131818121,-1041.66666667,0.00055,120]
[399169215,1766131818149,-1112.0,0.00055067,120]
[399169216,1766131818176,-1112.0,0.00055067,120]
[399169217,1766131818204,-608.46664735,0.00055067,120]
[399169218,1766131818230,-300.0,0.00055068,10]
[399169219,1766131818257,-500.0,0.00055068,120]
[399169220,1766131818285,-500.0,0.00055068,120]
[399169221,1766131818310,-790.02,0.00055068,120]
[399169222,1766131818335,-500.0,0.00055068,120]
[399169223,1766131818360,-500.0,0.00055068,120]
[399169224,1766131818384,-351.50000001,0.00055068,120]
[399169225,1766131818410,-500.0,0.00055068,120]
[399169226,1766131818434,-500.0,0.00055068,120]
[399169227,1766131818459,-500.0,0.00055068,120]
[399169228,1766131818483,-500.0,0.00055068,120]
[399169229,1766131818509,-500.0,0.00055068,120]
[399169230,1766131818534,-559.11620894,0.00055068,120]
[399169231,1766131818559,-522.64684762,0.00055068,120]
[399169232,1766131818583,-500.0,0.00055068,120]
[399169233,1766131818607,-500.0,0.00055068,120]
[399169234,1766131818630,-504.58482684,0.00055068,120]
[399169235,1766131818655,-500.0,0.00055068,120]
[399169236,1766131818681,-500.0,0.00055068,120]
[399169237,1766131818705,-500.0,0.00055068,120]
[399169238,1766131818729,-532.90660874,0.00055068,120]
[399169239,1766131818755,-1136.19,0.00055068,120]
[399169240,1766131818782,-500.0,0.00055068,120]
[399169241,1766131818806,-500.0,0.00055068,120]
[399169242,1766131818829,-1793.54,0.00055068,120]
[399169244,1766131818853,-500.0,0.00055068,120]
[399169245,1766131818877,-500.0,0.00055068,120]
[399169246,1766131818901,-500.0,0.00055068,120]
[399169247,1766131818925,-517.41,0.000551,30]
[399169248,1766131818959,-1099.59,0.000551,14]
[399169249,1766131818988,-300.79382708,0.00055342,10]
[399169250,1766131819019,-500.0,0.00055342,120]
[399169251,1766131819046,-500.0,0.00055342,120]
[399169252,1766131819070,-790.02,0.00055342,120]
[399169253,1766131819095,-500.0,0.00055342,120]
[399169254,1766131819119,-500.0,0.00055342,120]
[399169255,1766131819144,-500.0,0.00055342,120]
[399169256,1766131819169,-500.0,0.00055342,120]
[399169257,1766131819197,-500.0,0.00055342,120]
[399169258,1766131819223,-500.0,0.00055342,120]
[399169259,1766131819249,-500.0,0.00055342,120]
[399169260,1766131819278,-619.8,0.00055342,120]
[399169261,1766131819303,-500.0,0.00055342,120]
[399169262,1766131819329,-1136.19,0.00055342,120]
[399169263,1766131819356,-522.1933369,0.00055342,120]
[399169264,1766131819382,-500.0,0.00055342,120]
[399169265,1766131819410,-1793.54,0.00055342,120]
[399169266,1766131819437,-500.0,0.00055342,120]
[399169267,1766131819462,-500.0,0.00055342,120]
[399169268,1766131819488,-500.0,0.00055342,120]
[399169269,1766131819515,-200.0,0.00055615,90]
[399169270,1766131819542,-500.0,0.00055616,120]
[399169271,1766131819572,-500.0,0.00055616,120]
[399169272,1766131819599,-790.02,0.00055616,120]
[399169273,1766131819626,-500.0,0.00055616,120]
[399169274,1766131819652,-500.0,0.00055616,120]
[399169275,1766131819676,-500.0,0.00055616,120]
[399169276,1766131819702,-500.0,0.00055616,120]
[399169277,1766131819728,-603.5381195,0.00055616,120]
[399169278,1766131819754,-500.0,0.00055616,120]
[399169279,1766131819781,-500.0,0.00055616,120]
[399169280,1766131819811,-1136.19,0.00055616,120]
[399169281,1766131819979,-500.0,0.00055616,120]
[399169282,1766131820004,-1793.54,0.00055616,120]
[399169283,1766131820029,-624.12883233,0.00055616,120]
[399169285,1766131820056,-500.0,0.00055616,120]
[399169286,1766131820080,-500.0,0.00055616,120]
[399169287,1766131820103,-1041.66666667,0.0005562,120]
[399169288,1766131820126,-314.09,0.0005589,120]
[399169289,1766131820149,-790.02,0.0005589,120]
[399169290,1766131820172,-500.0,0.0005589,120]
[399169291,1766131820195,-500.0,0.0005589,120]
[399169292,1766131820218,-500.0,0.0005589,120]
[399169293,1766131820241,-500.0,0.0005589,120]
[399169294,1766131820264,-500.0,0.0005589,120]
[399169295,1766131820288,-500.0,0.0005589,120]
[399169296,1766131820316,-1136.19,0.0005589,120]
[399169297,1766131820342,-500.0,0.0005589,120]
[399169298,1766131820367,-1793.54,0.0005589,120]
[399169299,1766131820392,-500.0,0.0005589,120]
[399169300,1766131820417,-500.0,0.0005589,120]
[399169301,1766131820441,-790.02,0.00056164,120]
[399169302,1766131820468,-500.0,0.00056164,120]
[399169303,1766131820492,-500.0,0.00056164,120]
[399169304,1766131820517,-500.0,0.00056164,120]
[399169305,1766131820541,-500.0,0.00056164,120]
[399169306,1766131820565,-500.0,0.00056164,120]
[399169307,1766131820587,-501.32127307,0.00056164,120]
[399169308,1766131820611,-1136.19,0.00056164,120]
[399169309,1766131820635,-500.0,0.00056164,120]
[399169310,1766131820659,-1793.54,0.00056164,120]
[399169311,1766131820682,-500.0,0.00056164,120]
[399169312,1766131820706,-500.0,0.00056164,120]
[399169313,1766131820728,-790.02,0.00056438,120]
[399169314,1766131820750,-485.71954446,0.00056438,120]
[399169315,1766131820774,-507.82535795,0.00056438,120]
[399169316,1766131820796,-500.0,0.00056438,120]
[399169317,1766131820818,-626.16938267,0.00056438,120]
[399169318,1766131820840,-500.0,0.00056438,120]
[399169319,1766131820863,-1136.19,0.00056438,120]
[399169320,1766131820885,-500.0,0.00056438,120]
[399169321,1766131820909,-1793.54,0.00056438,120]
[399169322,1766131820932,-500.0,0.00056438,120]
[399169323,1766131820956,-500.0,0.00056438,120]
[399169324,1766131820983,-790.02,0.00056712,120]
[399169325,1766131821006,-500.0,0.00056712,120]
[399169326,1766131821030,-500.0,0.00056712,120]
[399169327,1766131821058,-1136.19,0.00056712,120]
[399169328,1766131821082,-500.0,0.00056712,120]
[399169329,1766131821106,-1793.54,0.00056712,120]
[399169330,1766131821137,-500.0,0.00056712,120]
[399169331,1766131821169,-500.0,0.00056712,120]
[399169332,1766131821192,-790.02,0.00056986,120]
[399169333,1766131821216,-500.0,0.00056986,120]
[399169334,1766131821239,-500.0,0.00056986,120]
[399169335,1766131821264,-1136.19,0.00056986,120]
[399169336,1766131821287,-500.0,0.00056986,120]
[399169337,1766131821310,-1793.54,0.00056986,120]
[399169338,1766131821332,-500.0,0.00056986,120]
[399169339,1766131821356,-500.0,0.00056986,120]
[399169340,1766131821380,-1782.42,0.00057,2]
[399169341,1766131821404,-790.02,0.0005726,120]
[399169342,1766131821429,-500.0,0.0005726,120]
[399169343,1766131821453,-322.65,0.0005726,120]
[399169344,1766131821478,-1136.19,0.0005726,120]
[399169345,1766131821503,-500.0,0.0005726,120]
[399169346,1766131821529,-1793.54,0.0005726,120]
[399169347,1766131821565,-500.0,0.0005726,120]
[399169348,1766131821590,-500.0,0.0005726,120]
[399169349,1766131821615,-517.41,0.000575,30]
[399169350,1766131821640,-1099.59,0.000575,14]
[399169351,1766131821667,-790.02,0.00057534,120]
[399169352,1766131821690,-500.0,0.00057534,120]
[399169353,1766131821715,-1136.19,0.00057534,120]
[399169354,1766131821740,-159.43090314,0.00057534,120]
[399169355,1766131821767,-1793.54,0.00057534,120]
[399169356,1766131821790,-500.0,0.00057534,120]
[399169357,1766131821814,-500.0,0.00057534,120]
[399169358,1766131821839,-790.02,0.00057808,120]
[399169359,1766131821863,-500.0,0.00057808,120]
[399169360,1766131821888,-1136.19,0.00057808,120]
[399169361,1766131821913,-1793.54,0.00057808,120]
[399169362,1766131821939,-500.0,0.00057808,120]
[399169363,1766131821966,-500.0,0.00057808,120]
[399169364,1766131821991,-790.02,0.00058082,120]
[399169365,1766131822017,-500.0,0.00058082,120]
[399169366,1766131822043,-1136.19,0.00058082,120]
[399169367,1766131822071,-1793.54,0.00058082,120]
[399169368,1766131822096,-500.0,0.00058082,120]
[399169369,1766131822124,-500.0,0.00058082,120]
[399169370,1766131822151,-790.02,0.00058356,120]
[399169371,1766131822175,-500.0,0.00058356,120]
[399169372,1766131822199,-1136.19,0.00058356,120]
[399169373,1766131822226,-1793.54,0.00058356,120]
[399169374,1766131822251,-500.0,0.00058356,120]
[399169375,1766131822279,-500.0,0.00058356,120]
[399169376,1766131822304,-790.02,0.0005863,120]
[399169377,1766131822331,-500.0,0.0005863,120]
[399169378,1766131822358,-1136.19,0.0005863,120]
[399169379,1766131822383,-1793.54,0.0005863,120]
[399169380,1766131822409,-500.0,0.0005863,120]
[399169381,1766131822441,-253.44059543,0.0005863,120]
[399169382,1766131822467,-790.02,0.00058904,120]
[399169383,1766131822492,-500.0,0.00058904,120]
[399169384,1766131822519,-1136.19,0.00058904,120]
[399169385,1766131822546,-1793.54,0.00058904,120]
[399169386,1766131822572,-500.0,0.00058904,120]
[399169387,1766131822596,-790.02,0.00059178,120]
[399169388,1766131822621,-500.0,0.00059178,120]
[399169389,1766131822646,-1136.19,0.00059178,120]
[399169390,1766131822672,-1793.54,0.00059178,120]
[399169392,1766131822698,-500.0,0.00059178,120]
[399169393,1766131822724,-790.02,0.00059452,120]
[399169394,1766131822749,-500.0,0.00059452,120]
[399169395,1766131822893,-1136.19,0.00059452,120]
[399169396,1766131822918,-1793.54,0.00059452,120]
[399169397,1766131822943,-500.0,0.00059452,120]
[399169398,1766131822970,-1782.42,0.000595,2]
[399169399,1766131822995,-790.02,0.00059726,120]
[399169400,1766131823020,-500.0,0.00059726,120]
[399169401,1766131823046,-1136.19,0.00059726,120]
[399169402,1766131823070,-1793.54,0.00059726,120]
[399169403,1766131823094,-500.0,0.00059726,120]
[399169404,1766131823117,-790.02,0.00059999,120]
[399169405,1766131823148,-500.0,0.00059999,120]
[399169406,1766131823172,-1136.19,0.00059999,120]
[399169407,1766131823195,-1793.54,0.00059999,120]
[399169408,1766131823219,-500.0,0.00059999,120]
[399169409,1766131823243,-517.41,0.0006,30]
[399169410,1766131823267,-1099.59,0.0006,14]
[399169411,1766131823291,-790.02,0.00060273,120]
[399169412,1766131823316,-283.91733906,0.00060273,120]
[399169413,1766131823341,-1136.19,0.00060273,120]
[399169414,1766131823366,-1793.54,0.00060273,120]
[399169415,1766131823391,-500.0,0.00060273,120]
[399169416,1766131823415,-790.02,0.00060547,120]
[399169417,1766131823440,-1136.19,0.00060547,120]
[399169418,1766131823465,-1793.54,0.00060547,120]
[399169419,1766131823491,-609.23499642,0.00060547,120]
[399169420,1766131823514,-790.02,0.00060821,120]
[399169421,1766131823539,-1136.19,0.00060821,120]
[399169422,1766131823563,-1793.54,0.00060821,120]
[399169423,1766131823588,-790.2190841,0.00061095,120]
[399169424,1766131823613,-1136.19057158,0.00061095,120]
[399169425,1766131823638,-1793.63015324,0.00061095,120]
[399169426,1766131823661,-1782.42,0.00068,2]
[399169427,1766131823686,-3000.0,0.00069,120]
[399169428,1766131823710,-3000.0,0.0006901,120]
[399169429,1766131823734,-3000.0,0.0006902,120]
[399169430,1766131823758,-5755.892656,0.0006903,120]
[399169431,1766131823782,-790.0,0.0007,120]
[399169432,1766131823806,-1794.660665,0.0008,120]
[399169433,1766131823854,250.0,0.00025967,2]
[399169434,1766131823885,292.62,0.00043726,30]
[399169435,1766131823916,276.07,0.0005699,10]
[399169436,1766131823954,150.0,0.00023227,2]
[399169437,1766131823984,229.84435288,0.00043427,2]
[399169438,1766131824014,229.84435284,0.00046381,2]
[399169439,1766131824041,229.84435284,0.00049335,2]
[399169440,1766131824071,229.84435284,0.00052288,30]
[399169441,1766131824098,229.84435284,0.00055242,30]
[399169442,1766131824130,3473.58224625,0.0008,2]
[399169443,1766131824182,500.0,0.00054794,120]
[399169444,1766131824212,500.0,0.00055068,120]
[399169445,1766131824415,415.0,0.00045426,2]
[399169446,1766131824858,415.0,0.00048426,2]
[399169447,1766131825311,415.0,0.00051426,120]
[399169448,1766131825750,385.824,0.00054426,120]
[399169472,1766131832095,-275.64921463,0.00043527,120]
[399169474,1766131832105,-267.50156109,0.00043527,120]
[399169476,1766131832115,-254.56246649,0.00043527,120]
[399169478,1766131832124,-277.06220921,0.00043527,120]
[399169480,1766131832133,-1000.0,0.00043527,120]
[399169482,1766131832142,-160.0,0.00043527,30]
[399169484,1766131832152,-1030.2368235,0.00043527,120]
[399169486,1766131832161,-1782.42,0.00084,2]
[399169487,1766131832170,-200.0,0.0008438,120]
[399169489,1766131832179,-200.0,0.000856,120]
[399169491,1766131832188,-1257.0,0.00098,120]
[399169492,1766131832197,-156.0,0.00098,120]
[399169494,1766131832207,-3000.0,0.001,120]
[399169496,1766131832216,-2139.56772508,0.0012,120]
[399169498,1766131832227,-860.43227492,0.0012,120]
[399169500,1766131832236,-200.0,0.00123614,120]
[399169502,1766131832246,-3000.0,0.0014,120]
[399169504,1766131832265,-3000.0,0.0016,120]
[399169506,1766131832274,-5000.0,0.0018,120]
[399169508,1766131832288,-999.0,0.002,120]
[399169510,1766131832307,-200.0,0.00245265,120]
[399169512,1766131832316,-160.805106,0.00273973,120]
[399169514,1766131832325,-151.0,0.00273973,120]
[399169516,1766131832334,-151.0,0.00273973,120]
[399169518,1766131832343,-266.684936,0.00273973,120]
[399169519,1766131832352,-151.0,0.00273973,120]
[399169520,1766131832362,-266.684936,0.00273973,120]
[399169521,1766131832371,-266.684936,0.00273973,120]
[399169522,1766131832379,-266.684936,0.00273973,120]
[399169523,1766131832388,-266.684936,0.00273973,120]
[399169524,1766131832398,-266.684936,0.00273973,120]
[399169525,1766131832407,-266.684936,0.00273973,120]
[399169526,1766131832416,-266.684936,0.00273973,120]
[399169527,1766131832425,-266.684936,0.00273973,120]
[399169528,1766131832435,-266.684936,0.00273973,120]
[399169529,1766131832444,-266.684936,0.00273973,120]
[399169530,1766131832453,-266.684936,0.00273973,120]
[399169531,1766131832463,-266.684936,0.00273973,120]
[399169532,1766131832472,-266.684936,0.00273973,120]
[399169533,1766131832481,-266.684936,0.00273973,120]
[399169534,1766131832491,-266.684936,0.00273973,120]
[399169535,1766131832501,-266.684936,0.00273973,120]
[399169536,1766131832510,-266.684936,0.00273973,120]
[399169537,1766131832520,-266.684936,0.00273973,120]
[399169538,1766131832530,-266.684944,0.00273973,120]
[399169539,1766131832539,-151.0,0.00273973,120]
[399169540,1766131832548,-151.0,0.00273973,120]
[399169541,1766131832558,-151.0,0.00273973,15]
[399169542,1766131832568,-151.0,0.00273973,15]
[399169543,1766131832577,-151.0,0.00273973,15]
[399169544,1766131832587,-151.0,0.00273973,15]
[399169545,1766131832596,-151.0,0.00273973,15]
[399169546,1766131832606,-151.0,0.00273973,15]
[399169547,1766131832615,-151.0,0.00273973,15]
[399169548,1766131832624,-151.0,0.00273973,15]
[399169549,1766131832633,-151.0,0.00273973,15]
[399169550,1766131832643,-151.0,0.00273973,15]
[399169551,1766131832652,-151.0,0.00273973,15]
[399169552,1766131832661,-151.0,0.00273973,15]
[399169553,1766131832670,-151.0,0.00273973,15]
[399169554,1766131832679,-151.0,0.00273973,15]
[399169555,1766131832688,-151.0,0.00273973,15]
[399169556,1766131832697,-233.804472,0.00273973,15]
[399169557,1766131832706,-151.0,0.00273973,28]
[399169558,1766131832715,-151.0,0.00273973,28]
[399169559,1766131832724,-151.0,0.00273973,28]
[399169560,1766131832733,-151.0,0.00273973,28]
[399169561,1766131832742,-151.0,0.00273973,28]
[399169562,1766131832751,-151.0,0.00273973,28]
[399169563,1766131832761,-151.0,0.00273973,120]
[399169564,1766131832771,-151.0,0.00273973,120]
[399169565,1766131832780,-151.0,0.00273973,120]
[399169566,1766131832789,-151.0,0.00273973,120]
[399169567,1766131832798,-151.0,0.00273973,120]
[399169568,1766131832807,-293.454168,0.00273973,120]
[399169569,1766131832816,-151.0,0.00273973,120]
[399169570,1766131832826,-151.0,0.00273973,120]
[399169571,1766131832835,-151.0,0.00273973,120]
[399169572,1766131832844,-151.0,0.00273973,120]
[399169573,1766131832853,-151.0,0.00273973,120]
[399169574,1766131832862,-151.0,0.00273973,120]
[399169575,1766131832871,-151.0,0.00273973,120]
[399169576,1766131832881,-151.0,0.00273973,120]
[399169577,1766131832891,-151.0,0.00273973,120]
[399169578,1766131832902,-151.0,0.00273973,120]
[399169579,1766131832911,-151.0,0.00273973,120]
[399169580,1766131832922,-151.0,0.00273973,120]
[399169581,1766131832932,-156.0,0.0028,120]
[399169582,1766131832941,-5000.0,0.0028,120]
[399169583,1766131832950,-1000.0,0.003,120]
[399169584,1766131832960,-200.0,0.00344946,120]
[399169585,1766131832974,-5000.0,0.0038,120]
[399169586,1766131832983,-5000.0,0.004,20]
[399169587,1766131832992,-500.0,0.00410958,120]
[399169588,1766131833002,-500.0,0.00410958,120]
[399169589,1766131833011,-500.0,0.00410958,120]
[399169590,1766131833020,-500.0,0.00410958,120]